bitfinex/quotes_BTCUSD_20250903
["timestamp","ask_amount","ask_price","bid_price","bid_amount"]
[1756879370547,0.67421442,110840.0,110830.0,0.46262373]
[1756879370981,0.21426445,110840.0,110830.0,0.29182373]
[1756879371188,0.64237024,110840.0,110830.0,0.46318373]
[1756879371571,0.64283907,110840.0,110830.0,0.46518373]
[1756879371971,0.64283907,110840.0,110830.0,0.46318373]
[1756879372943,1.13439419,110840.0,110830.0,0.46518373]
[1756879373273,0.81419907,110840.0,110830.0,0.46518373]
[1756879373466,0.81419907,110840.0,110830.0,0.46818373]
[1756879373704,0.81419907,110840.0,110830.0,0.29682373]
[1756879373917,1.13439419,110840.0,110830.0,0.46806373]
[1756879374339,1.13439419,110840.0,110830.0,0.46606373]
[1756879374540,1.13539419,110840.0,110830.0,0.47006373]
[1756879377314,1.13539419,110840.0,110830.0,0.29882373]
[1756879377518,1.13539419,110840.0,110830.0,0.46986373]
[1756879377722,1.13539419,110840.0,110830.0,0.29882373]
[1756879377932,1.13539419,110840.0,110830.0,0.46966373]
[1756879380465,1.13539419,110840.0,110830.0,0.47478373]
[1756879380777,1.13539419,110840.0,110830.0,0.47272373]
[1756879381083,1.13539419,110840.0,110830.0,0.46966373]
[1756879381445,1.13539419,110840.0,110830.0,0.47272373]
[1756879382092,1.13539419,110840.0,110830.0,0.30188373]
[1756879382396,1.13539419,110840.0,110830.0,0.46954373]
[1756879382604,2.68253994,110840.0,110830.0,0.11836763]
[1756879382809,1.72195458,110840.0,110830.0,0.11836763]
[1756879383435,1.72195458,110840.0,110830.0,0.11536763]
[1756879383646,1.61576974,110840.0,110830.0,0.11536763]
[1756879383830,1.61425974,110840.0,110830.0,0.11136763]
[1756879383985,1.61325974,110840.0,110830.0,0.11336763]
[1756879384326,1.61425974,110840.0,110830.0,0.11636763]
[1756879384751,1.61357974,110840.0,110830.0,0.11436763]
[1756879384962,1.61357974,110840.0,110830.0,0.11636763]
[1756879385589,0.58849922,110840.0,110830.0,0.11636763]
[1756879385809,1.61353974,110840.0,110830.0,0.29682418]
[1756879387202,1.61353974,110840.0,110830.0,0.11636763]
[1756879387832,1.70696573,110840.0,110830.0,0.11636763]
[1756879388660,1.67419979,110840.0,110830.0,0.11636763]
[1756879389737,1.67471979,110840.0,110830.0,0.11636763]
[1756879390317,1.67483979,110840.0,110830.0,0.11636763]
[1756879390523,1.70196708,110840.0,110830.0,0.11636763]
[1756879393464,1.70045708,110840.0,110830.0,0.11636763]
[1756879394267,1.70196708,110840.0,110830.0,0.11636763]
[1756879395558,1.73098302,110840.0,110830.0,0.11636763]
[1756879396988,1.70045708,110840.0,110830.0,0.11636763]
[1756879398417,1.70196708,110840.0,110830.0,0.11636763]
[1756879398621,1.70045708,110840.0,110830.0,0.11636763]
[1756879401113,2.18731342,110840.0,110830.0,0.11636763]
[1756879402164,2.61451368,110840.0,110830.0,0.11636763]
[1756879402398,2.70642967,110840.0,110830.0,0.11636763]
[1756879402623,2.63670007,110840.0,110830.0,0.11336763]
[1756879402828,2.63770007,110840.0,110830.0,0.11436763]
[1756879403029,2.63770007,110840.0,110830.0,0.11336763]
[1756879403238,2.63670007,110840.0,110830.0,0.11136763]
[1756879403441,2.63770007,110840.0,110830.0,0.11236763]
[1756879403665,2.63670007,110840.0,110830.0,0.11136763]
[1756879403887,2.63670007,110840.0,110830.0,0.11236763]
[1756879404108,2.63770007,110840.0,110830.0,0.11336763]
[1756879404536,2.63770007,110840.0,110830.0,0.11236763]
[1756879406134,2.20846981,110840.0,110830.0,0.11236763]
[1756879406971,1.77156981,110840.0,110830.0,0.11236763]
[1756879407896,2.20028007,110840.0,110830.0,0.11236763]
[1756879408105,2.22450997,110840.0,110830.0,0.11236763]
[1756879410965,2.22299997,110840.0,110830.0,0.11236763]
[1756879411412,2.22450997,110840.0,110830.0,0.11236763]
[1756879414138,2.22299997,110840.0,110830.0,0.11236763]
[1756879414987,2.22295997,110840.0,110830.0,0.11236763]
[1756879417400,2.22295997,110840.0,110830.0,0.11548763]
[1756879418305,2.22295997,110840.0,110830.0,0.11236763]
[1756879420040,2.22287997,110840.0,110830.0,0.11236763]
[1756879421403,2.24381879,110840.0,110830.0,0.11236763]
[1756879423714,2.33724478,110840.0,110830.0,0.11236763]
[1756879423918,2.33573478,110840.0,110830.0,0.11236763]
[1756879424777,2.24381879,110840.0,110830.0,0.11236763]
[1756879427282,2.24353879,110840.0,110830.0,0.11236763]
[1756879429157,2.24353879,110840.0,110830.0,0.11539763]
[1756879429379,2.24353879,110840.0,110830.0,0.11751763]
[1756879430315,2.07317879,110840.0,110830.0,0.11751763]
[1756879430557,1.03124008,110840.0,110830.0,0.11751763]
[1756879430788,1.85662466,110840.0,110830.0,0.11751763]
[1756879431292,1.8856406,110840.0,110830.0,0.11751763]
[1756879431580,1.7160806,110840.0,110830.0,0.11751763]
[1756879431745,1.8856406,110840.0,110830.0,0.11751763]
[1756879432118,1.8855606,110840.0,110830.0,0.11751763]
[1756879432681,1.88559221,110840.0,110830.0,0.11751763]
[1756879436189,1.88757338,110840.0,110830.0,0.11751763]
[1756879437474,1.83495862,110840.0,110830.0,0.11751763]
[1756879438678,1.86397456,110840.0,110830.0,0.11751763]
[1756879438904,1.69517456,110840.0,110830.0,0.11751763]
[1756879439108,1.83455862,110840.0,110830.0,0.11751763]
[1756879439324,1.85512789,110840.0,110830.0,0.11751763]
[1756879441216,1.85710789,110840.0,110830.0,0.11751763]
[1756879441416,1.85710789,110840.0,110830.0,0.11539763]
[1756879441618,2.28430815,110840.0,110830.0,0.11236763]
[1756879441824,1.85710789,110840.0,110830.0,0.11236763]
[1756879444103,1.85512789,110840.0,110830.0,0.11751763]
[1756879444315,1.83089799,110840.0,110830.0,0.11751763]
[1756879444736,1.83287799,110840.0,110830.0,0.11751763]
[1756879444939,1.83287799,110840.0,110830.0,0.11236763]
[1756879445124,1.83287799,110840.0,110830.0,0.11751763]
[1756879445549,2.90131889,110840.0,110830.0,0.11751763]
[1756879446274,2.90131889,110840.0,110830.0,0.11236763]
[1756879446865,2.90131889,110840.0,110830.0,0.11539763]
[1756879447291,2.90131889,110840.0,110830.0,0.11751763]
[1756879448163,2.90131889,110840.0,110830.0,0.11236763]
[1756879448366,2.92376771,110840.0,110830.0,0.11236763]
[1756879448900,2.92225771,110840.0,110830.0,0.11236763]
[1756879452227,2.92226368,110840.0,110830.0,0.11236763]
[1756879455600,2.75385157,110840.0,110830.0,0.11236763]
[1756879455776,2.91997157,110840.0,110830.0,0.11746763]
[1756879457973,2.89095563,110840.0,110830.0,0.11746763]
[1756879458223,2.91997157,110840.0,110830.0,0.11746763]
[1756879458614,2.91763157,110840.0,110830.0,0.11746763]
[1756879459027,2.91960238,110840.0,110830.0,0.11746763]
[1756879459230,2.91763238,110840.0,110830.0,0.11746763]
[1756879461906,2.94534228,110840.0,110830.0,0.11236763]
[1756879462130,3.01175499,110840.0,110830.0,0.11236763]
[1756879464549,2.46425307,110820.0,110810.0,0.00355]
[1756879464764,2.74075946,110820.0,110810.0,0.00355]
[1756879464990,2.80161958,110820.0,110810.0,0.0055]
[1756879465217,2.82875469,110820.0,110810.0,0.0055]
[1756879465946,2.8792945,110820.0,110810.0,0.0055]
[1756879467226,2.8792945,110820.0,110810.0,0.0075]
[1756879467355,2.8802945,110820.0,110810.0,0.0075]
[1756879467582,0.79229308,110820.0,110810.0,0.0075]
[1756879467792,2.8806145,110820.0,110810.0,0.0075]
[1756879468242,2.8631541,110820.0,110810.0,0.0075]
[1756879468685,2.88257247,110820.0,110810.0,0.0075]
[1756879469134,2.88060247,110820.0,110810.0,0.0075]
[1756879469789,2.88257247,110820.0,110810.0,0.0075]
[1756879470273,2.8631541,110820.0,110810.0,0.0075]
[1756879472641,2.9267941,110820.0,110810.0,0.0075]
[1756879474347,2.9241041,110820.0,110810.0,0.0075]
[1756879474546,3.03725913,110820.0,110800.0,0.02915696]
[1756879474769,3.03725913,110820.0,110790.0,0.11423898]
[1756879474770,0.54144423,110800.0,110790.0,0.11423898]
[1756879474984,2.54307556,110800.0,110790.0,0.03688646]
[1756879475182,2.80623886,110800.0,110790.0,0.03688646]
[1756879475386,2.60523862,110800.0,110790.0,0.03688646]
[1756879475796,2.56772336,110800.0,110790.0,0.03688646]
[1756879476055,2.59486658,110800.0,110790.0,0.03688646]
[1756879476269,2.59486658,110800.0,110790.0,0.04003646]
[1756879476270,2.59533512,110800.0,110790.0,0.04003646]
[1756879476688,2.85688111,110800.0,110790.0,0.04198646]
[1756879477389,2.81628541,110800.0,110790.0,0.04198646]
[1756879477556,2.83309557,110800.0,110790.0,0.04198646]
[1756879477784,0.91325415,110800.0,110790.0,0.04298646]
[1756879477928,2.83609557,110800.0,110790.0,0.04298646]
[1756879478121,2.83409557,110800.0,110790.0,0.04198646]
[1756879478583,2.83509557,110800.0,110790.0,0.04298646]
[1756879479140,2.77619356,110800.0,110790.0,0.04319646]
[1756879479549,2.77519356,110800.0,110790.0,0.04319646]
[1756879479955,2.77520356,110800.0,110790.0,0.04319646]
[1756879480220,2.75228474,110800.0,110790.0,0.04319646]
[1756879480451,0.65784332,110800.0,110790.0,0.04319646]
[1756879480682,1.79174403,110800.0,110790.0,0.04319646]
[1756879481083,2.1122176,110800.0,110790.0,0.04319646]
[1756879481332,2.78636029,110800.0,110790.0,0.04319646]
[1756879482814,2.76955013,110800.0,110790.0,0.04319646]
[1756879483022,2.78634727,110800.0,110790.0,0.04319646]
[1756879484071,1.82536656,110800.0,110790.0,0.04319646]
[1756879484294,0.86394585,110800.0,110790.0,0.04319646]
[1756879484513,1.82536656,110800.0,110790.0,0.04319646]
[1756879484994,2.78678727,110800.0,110790.0,0.04319646]
[1756879485836,2.78678727,110800.0,110790.0,0.04236176]
[1756879486283,2.78678892,110800.0,110790.0,0.04236176]
[1756879486532,2.79027892,110800.0,110790.0,0.03705176]
[1756879486762,2.78876892,110800.0,110790.0,0.03705176]
[1756879486985,2.80970774,110800.0,110790.0,0.03705176]
[1756879487472,0.88686632,110800.0,110790.0,0.04237176]
[1756879487716,2.78726892,110800.0,110790.0,0.04237176]
[1756879487934,2.61386892,110800.0,110790.0,0.04237176]
[1756879488387,2.78750892,110800.0,110790.0,0.04237176]
[1756879489694,2.61386892,110800.0,110790.0,0.04237176]
[1756879490133,2.78750892,110800.0,110790.0,0.04237176]
[1756879490540,2.61386892,110800.0,110790.0,0.04237176]
[1756879490747,2.78746892,110800.0,110790.0,0.04237176]
[1756879492012,2.78944892,110800.0,110790.0,0.04237176]
[1756879492215,2.78944892,110800.0,110790.0,0.03705176]
[1756879492452,2.78944892,110800.0,110790.0,0.04237176]
[1756879492876,0.6910275,110800.0,110790.0,0.04237176]
[1756879493104,1.82608821,110800.0,110790.0,0.04237176]
[1756879493551,0.8646675,110800.0,110790.0,0.04237176]
[1756879493772,1.82608821,110800.0,110790.0,0.04237176]
[1756879494246,1.82608821,110800.0,110790.0,0.03705176]
[1756879494247,2.79099892,110800.0,110790.0,0.03705176]
[1756879494476,2.81727216,110800.0,110790.0,0.03705176]
[1756879494698,0.89443074,110800.0,110790.0,0.03705176]
[1756879494910,2.81727216,110800.0,110790.0,0.03705176]
[1756879495773,2.79789892,110800.0,110790.0,0.03705176]
[1756879497388,2.8172765,110800.0,110790.0,0.03705176]
[1756879499594,2.82358712,110800.0,110790.0,0.03705176]
[1756879500552,2.84603594,110800.0,110790.0,0.03705176]
[1756879501513,2.84352594,110800.0,110790.0,0.03605176]
[1756879501927,2.84553255,110800.0,110790.0,0.03705176]
[1756879502140,2.82523373,110800.0,110790.0,0.04237176]
[1756879502564,2.64897373,110800.0,110790.0,0.04237176]
[1756879502733,2.82325373,110800.0,110790.0,0.04237176]
[1756879502991,2.64897373,110800.0,110790.0,0.04237176]
[1756879503204,2.82333373,110800.0,110790.0,0.04237176]
[1756879503420,2.64897373,110800.0,110790.0,0.04237176]
[1756879503600,2.82325373,110800.0,110790.0,0.04237176]
[1756879504028,0.90041231,110800.0,110790.0,0.04237176]
[1756879504274,2.82325373,110800.0,110790.0,0.04237176]
[1756879505313,2.82317373,110800.0,110790.0,0.04237176]
[1756879505513,1.58123097,110800.0,110790.0,0.04237176]
[1756879505712,1.75543097,110800.0,110790.0,0.04237176]
[1756879505922,1.58123097,110800.0,110790.0,0.04237176]
[1756879506124,1.75539097,110800.0,110790.0,0.04237176]
[1756879506559,1.58123097,110800.0,110790.0,0.04237176]
[1756879506764,1.75531097,110800.0,110790.0,0.04237176]
[1756879507503,0.92632258,110800.0,110790.0,0.22289346]
[1756879507744,0.88471042,110800.0,110790.0,0.24602346]
[1756879508419,1.22471042,110800.0,110790.0,0.24602346]
[1756879509089,0.36961176,110800.0,110790.0,0.24602346]
[1756879509278,1.22471042,110800.0,110790.0,0.24602346]
[1756879511635,0.36961176,110800.0,110790.0,0.24602346]
[1756879511870,1.22471042,110800.0,110790.0,0.24602346]
[1756879512130,1.43841138,110800.0,110790.0,0.06550176]
[1756879512401,1.25790597,110800.0,110790.0,0.24602346]
[1756879514530,0.36961176,110800.0,110790.0,0.24602346]
[1756879514760,0.36961176,110800.0,110790.0,0.33793945]
[1756879514969,0.45716109,110800.0,110790.0,0.33793945]
[1756879515152,0.43001787,110800.0,110790.0,0.51213945]
[1756879515653,0.77001787,110800.0,110790.0,0.51213945]
[1756879520110,0.77001787,110800.0,110790.0,0.51205945]
[1756879520526,0.77001787,110800.0,110790.0,0.33793945]
[1756879520736,0.77001787,110800.0,110790.0,0.51193945]
[1756879521868,0.77001787,110800.0,110790.0,0.51189945]
[1756879522505,0.34246854,110800.0,110790.0,0.48876945]
[1756879522723,1.1975672,110800.0,110790.0,0.48876945]
[1756879523620,1.1975672,110800.0,110790.0,0.48892945]
[1756879524252,1.1975672,110800.0,110790.0,0.31480945]
[1756879524456,1.1975672,110800.0,110790.0,0.48892945]
[1756879524667,1.1975672,110800.0,110790.0,0.48880945]
[1756879526521,1.1975672,110800.0,110790.0,0.31480945]
[1756879526718,1.1975672,110800.0,110790.0,0.48880945]
[1756879526974,1.38005261,110800.0,110790.0,0.03705176]
[1756879527202,1.38005261,110800.0,110790.0,0.21089176]
[1756879527203,1.41324816,110800.0,110790.0,0.21089176]
[1756879527407,1.58871816,110800.0,110790.0,0.03705176]
[1756879528433,1.55401261,110800.0,110790.0,0.03705176]
[1756879529446,1.58720816,110800.0,110790.0,0.03705176]
[1756879530492,1.61434274,110800.0,110790.0,0.03705176]
[1756879530910,1.25987733,110800.0,110790.0,0.03705176]
[1756879531123,1.61450274,110800.0,110790.0,0.03705176]
[1756879532359,1.61601274,110800.0,110790.0,0.03705176]
[1756879533193,1.70792873,110800.0,110790.0,0.03705176]
[1756879535958,0.85283007,110800.0,110790.0,0.03705176]
[1756879536168,1.70792873,110800.0,110790.0,0.03705176]
[1756879536371,1.53380873,110800.0,110790.0,0.03705176]
[1756879536574,1.70796873,110800.0,110790.0,0.03705176]
[1756879537228,1.70808873,110800.0,110790.0,0.03705176]
[1756879537452,2.14498873,110800.0,110790.0,0.03705176]
[1756879538114,1.96919873,110800.0,110790.0,0.03705176]
[1756879538296,2.14343873,110800.0,110790.0,0.03705176]
[1756879538569,1.11410007,110800.0,110790.0,0.03705176]
[1756879538788,2.04950274,110800.0,110790.0,0.04229176]
[1756879539598,2.05148274,110800.0,110790.0,0.04229176]
[1756879541710,2.04942274,110800.0,110790.0,0.04454828]
[1756879541975,2.04946274,110800.0,110790.0,0.04454828]
[1756879542184,2.04946274,110800.0,110790.0,0.04229176]
[1756879543553,2.05144274,110800.0,110790.0,0.04229176]
[1756879544967,2.05152274,110800.0,110790.0,0.04229176]
[1756879545173,2.05160274,110800.0,110790.0,0.04229176]
[1756879545364,2.05156274,110800.0,110790.0,0.04229176]
[1756879547467,1.19448408,110800.0,110790.0,0.04229176]
[1756879547681,2.04938274,110800.0,110790.0,0.04229176]
[1756879551199,2.05136274,110800.0,110790.0,0.04229176]
[1756879551852,2.04918274,110800.0,110790.0,0.04229176]
[1756879552060,1.66160178,110800.0,110790.0,0.22506998]
[1756879552265,1.83544178,110800.0,110790.0,0.22281346]
[1756879552833,2.01594719,110800.0,110790.0,0.22281346]
[1756879553892,0.98034312,110800.0,110790.0,0.22281346]
[1756879554087,1.83544178,110800.0,110790.0,0.22281346]
[1756879555418,1.66160178,110800.0,110790.0,0.22281346]
[1756879555591,1.83560178,110800.0,110790.0,0.22281346]
[1756879556712,1.66160178,110800.0,110790.0,0.22281346]
[1756879556914,1.83560178,110800.0,110790.0,0.22281346]
[1756879557178,0.98046312,110800.0,110790.0,0.22281346]
[1756879557358,1.83556178,110800.0,110790.0,0.22281346]
[1756879557581,1.61585274,110800.0,110790.0,0.03705176]
[1756879557786,1.6375319,110800.0,110790.0,0.03705176]
[1756879558705,1.61494274,110800.0,110790.0,0.03705176]
[1756879560471,1.61494274,110800.0,110790.0,0.04229176]
[1756879560673,1.44038274,110800.0,110790.0,0.04229176]
[1756879560952,1.61486274,110800.0,110790.0,0.04229176]
[1756879562496,1.61482274,110800.0,110790.0,0.04229176]
[1756879562721,1.61482274,110800.0,110790.0,0.03705176]
[1756879563372,1.61633274,110800.0,110790.0,0.03705176]
[1756879563589,1.70824873,110800.0,110790.0,0.03705176]
[1756879564028,1.73143789,110800.0,110790.0,0.03705176]
[1756879565617,1.70824873,110800.0,110790.0,0.03705176]
[1756879565831,1.70669873,110800.0,110790.0,0.03705176]
[1756879566056,1.70673873,110800.0,110790.0,0.03705176]
[1756879566260,1.70824873,110800.0,110790.0,0.03705176]
[1756879567444,1.81509998,110800.0,110790.0,0.03705176]
[1756879571350,1.81358998,110800.0,110790.0,0.03705176]
[1756879573213,1.63716998,110800.0,110790.0,0.04212176]
[1756879573413,1.71885399,110800.0,110790.0,0.04212176]
[1756879573709,1.18450306,110800.0,110790.0,0.04212176]
[1756879573920,1.50515303,110800.0,110790.0,0.04212176]
[1756879574305,1.51205844,110800.0,110790.0,0.22264346]
[1756879574518,1.50523303,110800.0,110790.0,0.22264346]
[1756879574716,0.54328312,110800.0,110790.0,0.22264346]
[1756879574946,1.50523303,110800.0,110790.0,0.22264346]
[1756879575149,1.33155303,110800.0,110790.0,0.22264346]
[1756879575306,1.50519303,110800.0,110790.0,0.22264346]
[1756879576662,1.01090306,110800.0,110790.0,0.22264346]
[1756879576868,1.01090306,110800.0,110790.0,0.24732346]
[1756879577502,0.67090306,110800.0,110790.0,0.24732346]
[1756879577749,1.01090306,110800.0,110790.0,0.24732346]
[1756879577963,1.01090306,110800.0,110790.0,0.33923945]
[1756879578174,1.00990306,110800.0,110790.0,0.33923945]
[1756879578384,1.00890306,110800.0,110790.0,0.33823945]
[1756879578609,1.00990306,110800.0,110790.0,0.34123945]
[1756879578820,1.00890306,110800.0,110790.0,0.33823945]
[1756879579228,1.00990306,110800.0,110790.0,0.34523945]
[1756879581341,0.36860312,110800.0,110790.0,0.34523945]
[1756879581521,1.00990306,110800.0,110790.0,0.34523945]
[1756879581970,1.00990306,110800.0,110790.0,0.51863945]
[1756879584095,2.6836939,110800.0,110790.0,0.04305176]
[1756879584324,1.74644044,110800.0,110790.0,0.04305176]
[1756879584493,1.74493044,110800.0,110790.0,0.04305176]
[1756879584902,1.74393044,110800.0,110790.0,0.03805176]
[1756879585107,1.74393044,110800.0,110790.0,0.03605176]
[1756879585314,1.74493044,110800.0,110790.0,0.03905176]
[1756879585519,1.74493044,110800.0,110790.0,0.04005176]
[1756879586606,1.74644044,110800.0,110790.0,0.04005176]
[1756879588423,2.70839035,110800.0,110790.0,0.04005176]
[1756879588633,1.74644044,110800.0,110790.0,0.04005176]
[1756879589013,2.70839035,110800.0,110790.0,0.04005176]
[1756879589419,1.74644044,110800.0,110790.0,0.04005176]
[1756879591392,1.74644044,110800.0,110790.0,0.03985907]
[1756879593219,1.74493044,110800.0,110790.0,0.03985907]
[1756879593720,2.18183044,110800.0,110790.0,0.03985907]
[1756879594276,1.21988053,110800.0,110790.0,0.03985907]
[1756879594483,2.18183044,110800.0,110790.0,0.03985907]
[1756879600698,3.1120948,110800.0,110790.0,0.03985907]
[1756879602370,3.14529035,110800.0,110790.0,0.03985907]
[1756879602853,3.14378035,110800.0,110790.0,0.03985907]
[1756879603080,2.18183044,110800.0,110790.0,0.03985907]
[1756879603265,2.00783044,110800.0,110790.0,0.04310907]
[1756879603504,2.18127044,110800.0,110790.0,0.04310907]
[1756879603957,2.15657399,110800.0,110790.0,0.04310907]
[1756879604503,2.15657399,110800.0,110790.0,0.04524907]
[1756879604727,2.15459399,110800.0,110790.0,0.04524907]
[1756879604912,2.15657399,110800.0,110790.0,0.04524907]
[1756879605476,2.15479399,110800.0,110790.0,0.04524907]
[1756879605687,1.98115399,110800.0,110790.0,0.04524907]
[1756879605899,1.94795844,110800.0,110790.0,0.04524907]
[1756879606524,1.94795844,110800.0,110790.0,0.22802729]
[1756879606740,1.51105844,110800.0,110790.0,0.22577077]
[1756879607419,1.00990306,110800.0,110790.0,0.22577077]
[1756879607633,1.00990306,110800.0,110790.0,0.25073077]
[1756879607847,0.66990306,110800.0,110790.0,0.51616676]
[1756879608268,1.00990306,110800.0,110790.0,0.51616676]
[1756879608689,0.36860312,110800.0,110790.0,0.51616676]
[1756879608897,1.00990306,110800.0,110790.0,0.51616676]
[1756879618342,1.00990306,110800.0,110790.0,0.34264676]
[1756879618757,1.00990306,110800.0,110790.0,0.51556676]
[1756879619740,0.36860312,110800.0,110790.0,0.51556676]
[1756879620130,1.00990306,110800.0,110790.0,0.51556676]
[1756879620588,0.34146854,110800.0,110790.0,0.57920676]
[1756879620758,0.00146854,110800.0,110790.0,1.02079555]
[1756879620975,0.00146854,110800.0,110790.0,0.70014558]
[1756879621304,0.00146854,110800.0,110790.0,1.02079555]
[1756879621511,0.00146854,110800.0,110790.0,1.04792034]
[1756879621958,0.00146854,110800.0,110790.0,0.55335037]
[1756879622201,0.00146854,110800.0,110790.0,1.04712034]
[1756879622609,0.00146854,110800.0,110790.0,1.05602557]
[1756879622829,0.00246854,110800.0,110790.0,0.7405356]
[1756879623070,0.00246854,110800.0,110790.0,1.1375356]
[1756879623071,0.32211851,110800.0,110790.0,1.1375356]
[1756879623275,0.00146854,110800.0,110790.0,1.1375356]
[1756879623520,0.32311851,110800.0,110790.0,1.1455356]
[1756879624173,0.00246854,110800.0,110790.0,1.1455356]
[1756879626006,0.00246854,110800.0,110790.0,0.9722556]
[1756879626205,0.00246854,110800.0,110790.0,1.1453756]
[1756879627720,0.00246854,110800.0,110790.0,0.9722556]
[1756879627941,0.00246854,110800.0,110790.0,1.1451356]
[1756879629237,0.43161496,110800.0,110790.0,0.41745155]
[1756879629519,0.43161496,110800.0,110790.0,0.56316676]
[1756879629520,0.77161496,110800.0,110790.0,0.56316676]
[1756879630211,0.77161496,110800.0,110790.0,0.56305676]
[1756879631064,0.77161496,110800.0,110790.0,0.55789676]
[1756879631270,0.77312496,110800.0,110790.0,0.55789676]
[1756879631480,0.77161496,110800.0,110790.0,0.55789676]
[1756879632510,1.37979679,110800.0,110790.0,0.04385907]
[1756879632717,1.37979679,110800.0,110790.0,0.20889907]
[1756879632718,1.37879679,110800.0,110790.0,0.20889907]
[1756879632926,1.37979679,110800.0,110790.0,0.21289907]
[1756879633351,1.38079679,110800.0,110790.0,0.21989907]
[1756879633639,1.37879679,110800.0,110790.0,0.20889907]
[1756879633851,1.37879679,110800.0,110790.0,0.20901907]
[1756879634058,1.37979679,110800.0,110790.0,0.21601907]
[1756879634266,1.37979679,110800.0,110790.0,0.04285907]
[1756879634478,1.37979679,110800.0,110790.0,0.21601907]
[1756879634695,0.52395395,110800.0,110790.0,0.21601907]
[1756879634902,0.95112037,110800.0,110790.0,0.22338077]
[1756879635123,0.95112037,110800.0,110790.0,0.39646077]
[1756879635334,0.95112037,110800.0,110790.0,0.40046077]
[1756879635541,1.37928679,110800.0,110790.0,0.40046077]
[1756879636385,1.19878138,110800.0,110790.0,0.40046077]
[1756879636846,0.95212037,110800.0,110790.0,0.40046077]
[1756879637309,1.37928679,110800.0,110790.0,0.40046077]
[1756879637963,1.38079679,110800.0,110790.0,0.21993907]
[1756879638191,1.38079679,110800.0,110790.0,0.21977907]
[1756879638411,1.41399234,110800.0,110790.0,0.21977907]
[1756879638595,1.41248234,110800.0,110790.0,0.21977907]
[1756879639414,1.41248234,110800.0,110790.0,0.40030077]
[1756879639627,1.43961463,110800.0,110790.0,0.40030077]
[1756879642280,0.36960083,110800.0,110790.0,0.40542077]
[1756879642714,0.79676725,110800.0,110790.0,0.40542077]
[1756879644074,0.79676725,110800.0,110790.0,0.49733676]
[1756879645068,0.79676725,110800.0,110790.0,0.49661676]
[1756879646245,0.79874725,110800.0,110790.0,0.49661676]
[1756879647850,0.79874725,110800.0,110790.0,0.49609676]
[1756879649712,0.79676725,110800.0,110790.0,0.49609676]
[1756879650760,0.79874725,110800.0,110790.0,0.49609676]
[1756879653661,0.97925266,110800.0,110790.0,0.49609676]
[1756879655322,0.79874725,110800.0,110790.0,0.49609676]
[1756879656570,0.79676725,110800.0,110790.0,0.49609676]
[1756879657098,0.79874725,110800.0,110790.0,0.49395676]
[1756879657453,0.79874725,110800.0,110790.0,0.49609676]
[1756879658220,0.36960083,110800.0,110790.0,0.49609676]
[1756879658456,0.76963496,110800.0,110790.0,0.49609676]
[1756879663028,0.34246854,110800.0,110790.0,0.49609676]
[1756879663244,0.34246854,110800.0,110790.0,0.58227676]
[1756879666142,0.76963496,110800.0,110790.0,0.98227676]
[1756879666381,0.76963496,110800.0,110790.0,0.81059676]
[1756879666622,0.76963496,110800.0,110790.0,0.97959676]
[1756879669434,0.76963496,110800.0,110790.0,0.57959676]
[1756879669642,0.34246854,110800.0,110790.0,0.57959676]
[1756879669856,0.76963496,110800.0,110790.0,0.57959676]
[1756879671810,0.76963496,110800.0,110790.0,0.41059676]
[1756879672020,0.76963496,110800.0,110790.0,0.57899676]
[1756879673500,0.76963496,110800.0,110790.0,0.97899676]
[1756879674692,0.76963496,110800.0,110790.0,0.95645676]
[1756879675662,0.76963496,110800.0,110790.0,0.78805676]
[1756879675899,0.76963496,110800.0,110790.0,0.95569676]
[1756879679494,0.76963496,110800.0,110790.0,0.55569676]
[1756879681278,0.34246854,110800.0,110790.0,0.55569676]
[1756879681492,0.00246854,110800.0,110790.0,0.55569676]
[1756879682746,0.00246854,110800.0,110790.0,0.62663558]
[1756879683642,0.00246854,110800.0,110790.0,1.04917558]
[1756879685749,0.00442854,110800.0,110790.0,0.88153558]
[1756879685953,0.00442854,110800.0,110790.0,0.80685558]
[1756879685954,0.43159496,110800.0,110790.0,0.80685558]
[1756879686162,0.43159496,110800.0,110790.0,0.95517676]
[1756879687076,0.43159496,110800.0,110790.0,0.55517676]
[1756879687491,0.43159496,110800.0,110790.0,0.95517676]
[1756879689531,0.64530704,110800.0,110790.0,0.78801676]
[1756879689675,0.64530704,110800.0,110790.0,0.95481676]
[1756879690292,0.64530704,110800.0,110790.0,0.54969676]
[1756879690475,0.00442854,110800.0,110790.0,0.54969676]
[1756879690706,0.64530704,110800.0,110790.0,0.54969676]
[1756879690905,0.64530704,110800.0,110790.0,0.55488676]
[1756879691174,0.00246854,110800.0,110790.0,0.55488676]
[1756879691549,0.32290779,110800.0,110790.0,0.55488676]
[1756879694836,0.64334704,110800.0,110790.0,0.55488676]
[1756879696422,0.64334704,110800.0,110790.0,0.95488676]
[1756879702168,0.00246854,110800.0,110790.0,0.95488676]
[1756879702328,0.64334704,110800.0,110790.0,0.95488676]
[1756879702528,0.00246854,110800.0,110790.0,1.02582558]
[1756879702735,0.00246854,110800.0,110790.0,0.62582558]
[1756879702934,0.32290779,110800.0,110790.0,0.62582558]
[1756879703141,0.32290779,110800.0,110790.0,1.02582558]
[1756879703827,0.00246854,110800.0,110790.0,1.05067558]
[1756879704031,0.2539703,110850.0,110840.0,0.18044027]
[1756879704032,0.24161631,110850.0,110840.0,0.18044027]
[1756879704254,0.71791481,110850.0,110840.0,0.34700027]
[1756879704669,0.74503663,110850.0,110840.0,0.34700027]
[1756879705051,0.67149032,110850.0,110840.0,0.34700027]
[1756879705245,0.67149032,110850.0,110840.0,0.34704708]
[1756879705491,1.01149032,110850.0,110840.0,0.34704708]
[1756879705660,1.01249032,110850.0,110840.0,0.34704708]
[1756879706335,1.01349032,110850.0,110840.0,0.34804708]
[1756879706900,1.02251248,110850.0,110840.0,0.34804708]
[1756879707092,1.20193647,110850.0,110840.0,0.34704708]
[1756879707482,1.20293647,110850.0,110840.0,0.35104708]
[1756879708174,1.20193647,110850.0,110840.0,0.35104708]
[1756879708556,1.20193647,110850.0,110840.0,0.35304708]
[1756879710498,1.20042647,110850.0,110840.0,0.35304708]
[1756879710705,1.02000248,110850.0,110840.0,0.35304708]
[1756879714532,1.02000248,110850.0,110840.0,0.35625708]
[1756879715057,1.02000248,110850.0,110840.0,0.35823708]
[1756879715365,1.02000248,110850.0,110840.0,0.35625708]
[1756879716146,1.01098032,110850.0,110840.0,0.35823708]
[1756879716981,1.00900032,110850.0,110840.0,0.35823708]
[1756879718224,1.00900032,110850.0,110840.0,0.45015307]
[1756879720016,1.00900032,110850.0,110840.0,0.45003307]
[1756879720213,1.00900032,110850.0,110840.0,0.28359307]
[1756879720425,1.00900032,110850.0,110840.0,0.45003307]
[1756879720635,1.00900032,110850.0,110840.0,0.28359307]
[1756879720861,0.37008182,110850.0,110840.0,0.45003307]
[1756879721006,1.00900032,110850.0,110840.0,0.45003307]
[1756879722413,1.00900032,110850.0,110840.0,0.00604681]
[1756879722414,1.71292911,110850.0,110840.0,0.00604681]
[1756879722612,1.71292911,110850.0,110840.0,0.17244681]
[1756879722829,1.71292911,110850.0,110840.0,0.00604681]
[1756879724269,1.73756137,110850.0,110840.0,0.00604681]